bitfinex/quotes_BTCUSD_20250114
["timestamp","ask_amount","ask_price","bid_price","bid_amount"]
[1736889491594,5.7e-07,96693.0,96692.0,0.6933174]
[1736889492245,5.7e-07,96693.0,96692.0,2.1933174]
[1736889492447,5.7e-07,96693.0,96692.0,2.2013174]
[1736889492871,5.7e-07,96693.0,96692.0,2.2063174]
[1736889493271,5.7e-07,96693.0,96692.0,2.2013174]
[1736889493698,5.7e-07,96693.0,96692.0,2.1983174]
[1736889494120,5.7e-07,96693.0,96692.0,2.2073174]
[1736889494335,5.7e-07,96693.0,96692.0,2.2163174]
[1736889494536,0.1225,96721.0,96710.0,0.456803]
[1736889494746,0.1225,96721.0,96710.0,0.56102992]
[1736889496165,0.1225,96721.0,96710.0,2.06102992]
[1736889496543,0.1225,96721.0,96710.0,2.06602992]
[1736889496947,0.1225,96721.0,96710.0,2.09826757]
[1736889497638,0.1225,96721.0,96710.0,2.10726757]
[1736889497838,0.1225,96721.0,96710.0,2.38858382]
[1736889498013,0.1225,96721.0,96710.0,2.42081454]
[1736889498190,0.1225,96721.0,96710.0,2.43999378]
[1736889498391,0.1225,96721.0,96710.0,2.40776306]
[1736889499501,0.1225,96721.0,96710.0,2.42796702]
[1736889501066,0.0459,96721.0,96710.0,2.32796702]
[1736889501265,0.07989319,96711.0,96710.0,0.82796702]
[1736889502536,0.07989319,96711.0,96710.0,1.01353504]
[1736889504343,0.07989319,96711.0,96710.0,0.82796702]
[1736889505552,0.07989319,96711.0,96710.0,0.67796702]
[1736889505760,0.12789319,96711.0,96710.0,0.65776306]
[1736889506749,0.12789319,96711.0,96710.0,0.65276306]
[1736889506956,0.12789319,96711.0,96710.0,0.64376306]
[1736889507358,0.12789319,96711.0,96710.0,0.64976306]
[1736889507601,0.12789319,96711.0,96710.0,0.64376306]
[1736889507967,0.12789319,96711.0,96710.0,0.65276306]
[1736889508182,0.12789319,96711.0,96710.0,0.80276306]
[1736889508386,0.12789319,96711.0,96710.0,0.79976306]
[1736889508550,0.07989319,96711.0,96710.0,0.79976306]
[1736889508963,0.07989319,96711.0,96710.0,0.98546938]
[1736889509368,0.07989319,96711.0,96710.0,0.98746938]
[1736889509971,0.07989319,96711.0,96710.0,1.03372309]
[1736889512506,0.07989319,96711.0,96710.0,0.65176306]
[1736889512713,0.12789319,96711.0,96710.0,0.65176306]
[1736889516010,0.12789319,96711.0,96710.0,0.32920916]
[1736889518794,0.12789319,96711.0,96710.0,1.82920916]
[1736889518989,0.07989319,96711.0,96710.0,2.07920916]
[1736889519346,0.00179319,96711.0,96710.0,2.07920916]
[1736889519793,0.00179319,96711.0,96710.0,1.97920916]
[1736889519986,0.00179319,96711.0,96710.0,2.07920916]
[1736889520197,0.00179319,96711.0,96710.0,0.47920916]
[1736889520537,0.00179319,96711.0,96710.0,0.51149767]
[1736889520731,0.00179319,96711.0,96710.0,0.47920916]
[1736889521157,0.07969319,96711.0,96710.0,0.47920916]
[1736889522761,0.07969319,96711.0,96710.0,0.66512615]
[1736889526664,0.07969319,96711.0,96710.0,0.47920916]
[1736889530294,0.07969319,96711.0,96710.0,0.7116054]
[1736889532326,0.07969319,96711.0,96710.0,0.47920916]
[1736889532504,0.07969319,96711.0,96710.0,0.32920916]
[1736889534938,0.12749319,96711.0,96710.0,0.22498224]
[1736889536286,0.12749319,96711.0,96710.0,0.3645372]
[1736889536486,0.12749319,96711.0,96710.0,0.46876412]
[1736889537254,0.12749319,96711.0,96710.0,0.32920916]
[1736889537991,0.12749319,96711.0,96710.0,0.5152725]
[1736889538347,0.00179319,96711.0,96710.0,0.6652725]
[1736889538963,0.00179319,96711.0,96710.0,0.47920916]
[1736889540954,0.08319319,96711.0,96710.0,0.47920916]
[1736889541589,0.13229319,96711.0,96710.0,0.22498224]
[1736889544086,0.13229319,96711.0,96710.0,0.214803]
[1736889544296,0.13229319,96711.0,96710.0,0.008]
[1736889544641,0.13706029,96711.0,96710.0,0.008]
[1736889545153,0.13706029,96711.0,96710.0,0.006]
[1736889545361,0.13706029,96711.0,96710.0,0.007]
[1736889545543,0.19212562,96711.0,96710.0,0.001]
[1736889545890,0.13706029,96711.0,96710.0,0.002]
[1736889546229,0.13706029,96711.0,96710.0,0.001]
[1736889546467,0.13706029,96711.0,96699.0,0.01027243]
[1736889546468,0.0774,96709.0,96699.0,0.01027243]
[1736889546707,0.0774,96707.0,96698.0,0.206828]
[1736889546890,0.00475839,96706.0,96698.0,0.206828]
[1736889547045,0.0774,96705.0,96696.0,0.09300051]
[1736889547259,0.00475767,96704.0,96702.0,0.20682]
[1736889547462,0.0774,96705.0,96703.0,0.10422692]
[1736889547660,0.0774,96705.0,96704.0,0.206816]
[1736889550389,0.0491,96710.0,96709.0,0.206805]
[1736889550593,0.0491,96710.0,96709.0,0.31103192]
[1736889552388,0.0491,96710.0,96709.0,0.31203192]
[1736889552590,0.0491,96710.0,96709.0,0.31403192]
[1736889553755,0.00179319,96711.0,96709.0,0.31403192]
[1736889553980,0.00179319,96711.0,96710.0,0.25526074]
[1736889554135,0.00179319,96711.0,96710.0,0.25422692]
[1736889555437,0.00179319,96711.0,96710.0,0.57678082]
[1736889555850,0.00179319,96711.0,96710.0,0.68078082]
[1736889556002,0.00179319,96711.0,96710.0,0.70898038]
[1736889556234,0.00179319,96711.0,96710.0,0.71698038]
[1736889556443,0.00179319,96711.0,96710.0,0.81698038]
[1736889557210,1.9e-07,96711.0,96710.0,0.81698038]
[1736889559389,1.9e-07,96711.0,96710.0,0.81498038]
[1736889559604,1.9e-07,96711.0,96710.0,0.81398038]
[1736889559947,1.9e-07,96711.0,96710.0,0.82298038]
[1736889560152,1.9e-07,96711.0,96710.0,0.81398038]
[1736889560353,1.9e-07,96711.0,96710.0,0.78178082]
[1736889560573,1.9e-07,96711.0,96710.0,0.79078082]
[1736889560776,1.9e-07,96711.0,96710.0,0.78578082]
[1736889561212,1.9e-07,96711.0,96710.0,0.79178082]
[1736889562260,1.9e-07,96711.0,96710.0,1.0699776]
[1736889563678,1.9e-07,96711.0,96710.0,0.79178082]
[1736889565081,1.9e-07,96711.0,96710.0,0.79263402]
[1736889565693,1.9e-07,96711.0,96710.0,2.28663402]
[1736889566044,1.9e-07,96711.0,96710.0,2.19263402]
[1736889566223,1.9e-07,96711.0,96710.0,0.58363402]
[1736889566379,1.9e-07,96711.0,96710.0,0.68363402]
[1736889566584,1.9e-07,96711.0,96710.0,0.69263402]
[1736889566792,1.9e-07,96711.0,96710.0,0.68363402]
[1736889567016,1.9e-07,96711.0,96710.0,0.69263402]
[1736889567195,1.9e-07,96711.0,96710.0,0.58663402]
[1736889567405,1.9e-07,96711.0,96710.0,0.58363402]
[1736889567602,1.9e-07,96711.0,96710.0,0.59263402]
[1736889567998,1.9e-07,96711.0,96710.0,0.43663402]
[1736889568238,0.04600019,96711.0,96710.0,0.44263402]
[1736889568879,0.04600019,96711.0,96710.0,0.59263402]
[1736889569074,0.04600019,96711.0,96710.0,0.58663402]
[1736889569322,1.9e-07,96711.0,96710.0,0.58663402]
[1736889569623,1.9e-07,96711.0,96710.0,0.57763402]
[1736889569830,1.9e-07,96711.0,96710.0,0.67040888]
[1736889569986,1.9e-07,96711.0,96710.0,0.67740888]
[1736889570183,1.9e-07,96711.0,96710.0,0.67040888]
[1736889570569,1.9e-07,96711.0,96710.0,0.68240888]
[1736889570774,1.9e-07,96711.0,96710.0,2.27517264]
[1736889571016,1.9e-07,96711.0,96710.0,2.27217264]
[1736889571442,1.9e-07,96711.0,96710.0,0.58963402]
[1736889571824,1.9e-07,96711.0,96710.0,0.58663402]
[1736889572338,1.9e-07,96711.0,96710.0,0.59063402]
[1736889575093,1.9e-07,96711.0,96710.0,0.77625031]
[1736889575689,1.9e-07,96711.0,96710.0,0.59063402]
[1736889577093,1.9e-07,96711.0,96710.0,0.68344083]
[1736889586922,1.9e-07,96711.0,96710.0,0.59063402]
[1736889592496,1.9e-07,96711.0,96710.0,0.68344083]
[1736889593758,1.9e-07,96711.0,96710.0,0.59063402]
[1736889595343,1.9e-07,96711.0,96710.0,0.72984423]
[1736889595953,1.9e-07,96711.0,96710.0,0.57984423]
[1736889596579,1.9e-07,96711.0,96710.0,0.44063402]
[1736889597361,1.9e-07,96711.0,96710.0,0.62625031]
[1736889600147,1.9e-07,96711.0,96710.0,0.44063402]
[1736889600360,0.07960019,96711.0,96710.0,0.11808012]
[1736889600569,0.12900019,96711.0,96710.0,0.0138532]
[1736889601058,0.13385872,96711.0,96710.0,0.0138532]
[1736889601446,0.12900019,96711.0,96710.0,0.0008532]
[1736889601805,0.12900019,96711.0,96710.0,0.0038532]
[1736889602245,0.13385505,96711.0,96710.0,0.0038532]
[1736889621650,0.13385505,96711.0,96710.0,0.10808012]
[1736889621886,0.00485505,96711.0,96710.0,0.10911403]
[1736889622114,0.00485505,96711.0,96710.0,0.10911401]
[1736889622349,1.9e-07,96711.0,96710.0,0.10808012]
[1736889622588,0.08010019,96711.0,96710.0,0.10808012]
[1736889623066,0.08010019,96711.0,96710.0,0.24757313]
[1736889623648,0.08010019,96711.0,96710.0,0.10808012]
[1736889624793,0.12810019,96711.0,96710.0,0.10808012]
[1736889626791,0.12810019,96711.0,96710.0,0.0038532]
[1736889627568,0.12810019,96711.0,96710.0,0.10808012]
[1736889627777,0.12810019,96711.0,96710.0,0.10608012]
[1736889628442,0.12810019,96711.0,96710.0,0.10508012]
[1736889629626,0.12810019,96711.0,96710.0,0.10608012]
[1736889630305,0.12810019,96711.0,96710.0,0.10708012]
[1736889639179,0.12810019,96711.0,96710.0,0.19992666]
[1736889639520,0.12810019,96711.0,96710.0,0.09569974]
[1736889644145,0.12810019,96711.0,96710.0,0.0028532]
[1736889644358,0.14091021,96711.0,96710.0,0.0028532]
[1736889644588,0.14091021,96711.0,96710.0,0.0008532]
[1736889644820,0.12810019,96711.0,96710.0,0.0018532]
[1736889645275,0.12810019,96711.0,96710.0,0.0008532]
[1736889645507,0.12810019,96711.0,96710.0,0.0018532]
[1736889645761,0.12810019,96711.0,96710.0,0.0028532]
[1736889646395,0.12810019,96711.0,96710.0,0.14234621]
[1736889648693,1.9e-07,96711.0,96710.0,0.24657313]
[1736889648901,1.9e-07,96711.0,96710.0,0.39657313]
[1736889649103,1.9e-07,96711.0,96710.0,0.25708012]
[1736889649316,1.9e-07,96711.0,96710.0,0.2893912]
[1736889649465,1.9e-07,96711.0,96710.0,0.25708012]
[1736889649815,1.9e-07,96711.0,96710.0,0.28937509]
[1736889650253,1.9e-07,96711.0,96710.0,0.28837509]
[1736889650465,1.9e-07,96711.0,96710.0,0.26408012]
[1736889650805,1.9e-07,96711.0,96710.0,0.25508012]
[1736889651038,1.9e-07,96711.0,96710.0,0.26408012]
[1736889651524,1.9e-07,96711.0,96710.0,0.26808012]
[1736889652566,1.9e-07,96711.0,96710.0,0.54697889]
[1736889653399,1.9e-07,96711.0,96710.0,0.56761581]
[1736889653746,1.9e-07,96711.0,96710.0,0.28871704]
[1736889669410,1.9e-07,96711.0,96710.0,0.52281704]
[1736889669653,0.0791,96734.0,96733.0,0.206754]
[1736889669900,0.0792231,96734.0,96733.0,0.31098092]
[1736889671320,0.0001231,96734.0,96733.0,0.31098092]
[1736889671545,0.0001231,96734.0,96733.0,0.31598092]
[1736889672641,0.0001231,96734.0,96733.0,0.31298092]
[1736889672935,0.0001231,96734.0,96733.0,0.32351725]
[1736889673121,0.0001231,96734.0,96733.0,0.32951725]
[1736889673509,0.0792231,96734.0,96733.0,0.47148997]
[1736889674405,0.0792231,96734.0,96733.0,0.33251725]
[1736889674812,0.08732473,96734.0,96733.0,0.32198092]
[1736889675031,0.08732473,96734.0,96733.0,0.011]
[1736889675032,0.1266231,96734.0,96733.0,0.011]
[1736889675418,0.13698779,96734.0,96733.0,0.011]
[1736889675830,0.13698779,96734.0,96733.0,0.008]
[1736889676038,0.13698779,96734.0,96733.0,0.009]
[1736889676239,0.13698779,96734.0,96733.0,0.001]
[1736889676652,0.13698779,96734.0,96733.0,0.002]
[1736889676863,0.0813,96733.0,96723.0,0.206774]
[1736889677075,0.0813,96733.0,96724.0,0.10422692]
[1736889677076,0.0103419,96732.0,96724.0,0.10422692]
[1736889677283,0.0813,96731.0,96724.0,0.10422692]
[1736889677508,0.01034132,96730.0,96724.0,0.10422692]
[1736889677667,0.0813,96729.0,96724.0,0.10422692]
[1736889677869,0.01034074,96728.0,96724.0,0.10422692]
[1736889678077,0.0813,96727.0,96724.0,0.10422692]
[1736889678277,0.01034015,96726.0,96724.0,0.10422692]
[1736889678483,0.09164015,96726.0,96725.0,0.206771]
[1736889678795,0.09164015,96726.0,96724.0,0.10422692]
[1736889679029,0.09164015,96726.0,96725.0,0.206771]
[1736889679345,0.0813,96726.0,96725.0,0.206771]
[1736889679555,0.0813,96724.0,96718.0,0.206785]
[1736889679747,0.0813,96722.0,96718.0,0.206785]
[1736889679957,0.0813,96722.0,96719.0,0.10422692]
[1736889680177,0.01034249,96721.0,96719.0,0.10422692]
[1736889680375,0.01034249,96721.0,96720.0,0.206782]
[1736889680618,0.01034249,96721.0,96720.0,0.31100892]
[1736889680994,0.0813,96722.0,96720.0,0.31100892]
[1736889681267,0.0813,96722.0,96721.0,0.10422692]
[1736889683121,0.0813,96722.0,96721.0,0.10522692]
[1736889684074,0.0813,96722.0,96721.0,0.10722692]
[1736889691442,0.0458,96732.0,96721.0,0.10722692]
[1736889691443,0.0813,96731.0,96730.0,0.206761]
[1736889691650,0.09155328,96731.0,96730.0,0.31098792]
[1736889692202,0.09155328,96731.0,96728.0,0.206764]
[1736889692403,0.01392687,96730.0,96722.0,0.206778]
[1736889692581,0.0813,96729.0,96724.0,0.206773]
[1736889692781,0.09155326,96729.0,96725.0,0.10422692]
[1736889692975,0.09155326,96729.0,96726.0,0.206769]
[1736889693181,0.09155326,96729.0,96727.0,0.10422692]
[1736889693790,0.0813,96729.0,96727.0,0.10422692]
[1736889693994,0.00179235,96733.0,96718.0,0.09267675]
[1736889693995,0.0792,96726.0,96718.0,0.09267675]
[1736889694200,0.1262,96721.0,96718.0,0.09267675]
[1736889694374,0.0792,96720.0,96718.0,0.09267675]
[1736889694588,0.08945467,96720.0,96718.0,0.09267675]
[1736889694966,0.08945467,96720.0,96711.0,0.30033125]
[1736889695756,0.08945467,96720.0,96714.0,0.206793]
[1736889695959,0.08945467,96720.0,96712.0,0.10422692]
[1736889696159,0.08945467,96720.0,96717.0,0.413574]
[1736889696160,0.0792,96720.0,96717.0,0.413574]
[1736889696366,0.01022888,96719.0,96718.0,0.25422692]
[1736889696567,0.0792,96726.0,96725.0,0.206771]
[1736889696770,0.0792,96726.0,96725.0,0.31099792]
[1736889696978,0.01020014,96726.0,96725.0,0.31099792]
[1736889697201,0.0001231,96734.0,96731.0,0.206758]
[1736889697412,0.0001231,96734.0,96732.0,0.10422692]
[1736889699633,0.0001231,96734.0,96732.0,0.10822692]
[1736889699838,0.0001231,96734.0,96732.0,0.10522692]
[1736889700233,0.0001231,96734.0,96732.0,0.10722692]
[1736889702424,0.0001231,96734.0,96732.0,0.10622692]
[1736889702647,0.0001231,96734.0,96732.0,0.10422692]
[1736889710462,0.0001231,96734.0,96732.0,0.10401345]
[1736889712025,0.0001231,96734.0,96729.0,0.206762]
[1736889712237,0.0797,96731.0,96727.0,0.09267675]
[1736889712683,0.01027583,96730.0,96727.0,0.09267675]
[1736889713125,0.01027583,96730.0,96724.0,0.206772]
[1736889713726,0.01027583,96730.0,96727.0,0.001]
[1736889714085,0.01027583,96730.0,96724.0,0.206772]
[1736889714284,0.01027583,96730.0,96724.0,0.208772]
[1736889714738,0.0787,96729.0,96724.0,0.002]
[1736889715180,0.0787,96727.0,96724.0,0.002]
[1736889715456,0.01027466,96726.0,96724.0,0.002]
[1736889715666,0.01027466,96726.0,96724.0,0.001]
[1736889717107,0.01127466,96726.0,96721.0,0.206778]
[1736889717313,0.001,96726.0,96723.0,0.206776]
[1736889717513,0.001,96726.0,96722.0,0.10422692]
[1736889717743,0.01027437,96725.0,96722.0,0.10422692]
[1736889718137,0.00616425,96725.0,96723.0,0.206776]
[1736889718989,0.001,96726.0,96723.0,0.206776]
[1736889719492,0.00614386,96725.0,96722.0,0.10422692]
[1736889719708,0.001,96726.0,96722.0,0.10422692]
[1736889719945,0.00614369,96724.0,96722.0,0.10422692]
[1736889720117,0.001,96726.0,96722.0,0.10422692]
[1736889720333,0.00614351,96723.0,96722.0,0.10422692]
[1736889720540,0.0787,96727.0,96722.0,0.10422692]
[1736889720753,0.001,96725.0,96722.0,0.10422692]
[1736889721048,0.00614403,96726.0,96722.0,0.10422692]
[1736889721257,0.00614369,96724.0,96722.0,0.10422692]
[1736889721456,0.001,96726.0,96722.0,0.10422692]
[1736889721772,0.00614351,96723.0,96722.0,0.10422692]
[1736889721922,0.001,96726.0,96722.0,0.10422692]
[1736889722107,0.00614614,96723.0,96722.0,0.10422692]
[1736889722329,0.001,96726.0,96722.0,0.10422692]
[1736889722555,0.00614614,96723.0,96722.0,0.10422692]
[1736889722757,0.0787,96727.0,96722.0,0.10422692]
[1736889722958,0.001,96725.0,96722.0,0.10422692]
[1736889723364,0.00614667,96724.0,96722.0,0.10422692]
[1736889723767,0.001,96726.0,96722.0,0.10422692]
[1736889723973,0.0787,96727.0,96722.0,0.10422692]
[1736889724181,0.00712424,96725.0,96722.0,0.10422692]
[1736889724379,0.001,96725.0,96722.0,0.10422692]
[1736889724593,0.0787,96727.0,96722.0,0.10422692]
[1736889724799,0.11221685,96727.0,96722.0,0.10422692]
[1736889724999,0.00612441,96726.0,96722.0,0.10422692]
[1736889726494,0.00712441,96726.0,96722.0,0.10422692]
[1736889726713,0.00812441,96726.0,96722.0,0.10422692]
[1736889729354,0.08,96725.0,96717.0,0.09267675]
[1736889729531,0.05016514,96724.0,96718.0,0.10422692]
[1736889729742,0.08,96723.0,96722.0,0.0008533]
[1736889729942,0.08612353,96723.0,96722.0,0.0008533]
[1736889730144,0.29289953,96723.0,96722.0,0.0008533]
[1736889730346,0.08612353,96723.0,96722.0,0.0008533]
[1736889732750,0.08712353,96723.0,96722.0,0.0008533]
[1736889736533,0.00712353,96723.0,96722.0,0.10508022]
[1736889736739,0.001,96723.0,96722.0,0.10508022]
[1736889737580,0.001,96723.0,96722.0,0.11545803]
[1736889738072,0.001,96723.0,96722.0,0.30086409]
[1736889738508,0.0001231,96734.0,96722.0,0.30086409]
[1736889738697,0.0001231,96734.0,96732.0,0.206756]
[1736889738896,0.0001231,96734.0,96732.0,0.31098292]
[1736889740051,0.0001231,96734.0,96732.0,0.31398292]
[1736889740831,0.0001231,96734.0,96732.0,0.31498292]
[1736889741606,0.0001231,96734.0,96732.0,0.32552555]
[1736889742991,0.0001231,96734.0,96732.0,0.31498292]
[1736889743197,0.14285321,96733.0,96732.0,0.004]
[1736889743401,0.13419235,96733.0,96732.0,0.004]
[1736889743962,0.13419235,96733.0,96732.0,0.003]
[1736889745207,0.0829,96732.0,96723.0,0.206776]
[1736889745624,0.0829,96732.0,96722.0,0.0008533]
[1736889745822,0.0829,96730.0,96722.0,0.0008533]
[1736889746202,0.0829,96728.0,96722.0,0.0008533]
[1736889746705,0.00616955,96727.0,96722.0,0.0008533]
[1736889748230,0.00716955,96727.0,96722.0,0.0008533]
[1736889748609,0.00916955,96727.0,96722.0,0.0008533]
[1736889749515,0.00916955,96727.0,96723.0,0.51777592]
[1736889749728,0.003,96727.0,96723.0,0.51777592]
[1736889750358,0.002,96727.0,96723.0,0.51777592]
[1736889750537,0.002,96727.0,96725.0,0.206771]
[1736889750871,0.003,96727.0,96726.0,0.10422692]
[1736889751045,0.0829,96731.0,96726.0,0.12360026]
[1736889751222,0.0829,96731.0,96727.0,0.413534]
[1736889751425,0.0829,96731.0,96729.0,0.206763]
[1736889751625,0.0829,96731.0,96730.0,0.10422692]
[1736889752007,0.0829,96731.0,96730.0,0.12360026]
[1736889752824,0.07864668,96731.0,96730.0,0.12360026]
[1736889754075,0.07864668,96731.0,96730.0,0.10422692]
[1736889754304,0.07864668,96731.0,96730.0,0.10522692]
[1736889755781,0.07864668,96731.0,96730.0,0.10608022]
[1736889756004,0.08043861,96731.0,96730.0,0.10608022]
[1736889756235,0.08043861,96731.0,96730.0,0.0018533]
[1736889756437,0.08659915,96731.0,96730.0,0.0018533]
[1736889757560,0.08659915,96731.0,96730.0,0.0008533]
[1736889757786,0.08759915,96731.0,96730.0,0.0008533]
[1736889768821,0.08759915,96731.0,96730.0,0.10508022]
[1736889769239,0.08143861,96731.0,96730.0,0.10508022]
[1736889770253,0.00179193,96731.0,96730.0,0.10508022]
[1736889770454,0.00179193,96731.0,96730.0,0.10608022]
[1736889771222,0.00179193,96731.0,96730.0,0.10508022]
[1736889771420,0.00179193,96731.0,96730.0,0.11008022]
[1736889771621,0.00179193,96731.0,96724.0,0.34619195]
[1736889771622,0.399,96720.0,96719.0,0.028935]
[1736889771825,0.1,96704.0,96687.0,0.31289504]
[1736889772076,0.64734292,96704.0,96687.0,0.31289504]
[1736889772275,0.79792818,96704.0,96687.0,0.31289504]
[1736889772811,0.1,96694.0,96686.0,0.0008534]
[1736889772941,0.49136492,96694.0,96686.0,0.0008534]
[1736889773145,0.62533552,96694.0,96686.0,0.0008534]
[1736889773952,0.96767474,96694.0,96686.0,0.0008534]
[1736889775081,1.26737474,96694.0,96693.0,4e-07]
[1736889775285,0.306853,96687.0,96686.0,0.0008534]
[1736889775485,0.43407992,96687.0,96686.0,0.0008534]
[1736889775697,0.62530066,96687.0,96686.0,0.0008534]
[1736889775886,0.87530066,96687.0,96686.0,0.0008534]
[1736889776493,0.87630066,96687.0,96686.0,0.0008534]
[1736889777481,1.21863988,96687.0,96686.0,0.0008534]
[1736889777846,1.21763988,96687.0,96686.0,0.0008534]
[1736889778214,1.23063988,96687.0,96686.0,0.0028534]
[1736889778596,1.21763988,96687.0,96686.0,0.0008534]
[1736889778804,1.22663988,96687.0,96686.0,0.0018534]
[1736889779002,1.23363988,96687.0,96686.0,0.0028534]
[1736889779449,1.55643988,96687.0,96686.0,0.0018534]
[1736889779820,1.56343988,96687.0,96686.0,0.0028534]
[1736889780060,1.57966154,96687.0,96686.0,0.0028534]
[1736889780291,1.57066154,96687.0,96686.0,0.0018534]
[1736889780463,1.57966154,96687.0,96686.0,0.0028534]
[1736889780659,1.57966154,96687.0,96686.0,0.0018534]
[1736889780660,1.57066154,96687.0,96686.0,0.0018534]
[1736889780882,1.48725879,96687.0,96686.0,0.0018534]
[1736889781089,1.49625879,96687.0,96686.0,0.0028534]
[1736889781289,1.50225879,96687.0,96686.0,0.0028534]
[1736889781507,1.48603713,96687.0,96686.0,0.0028534]
[1736889781708,1.49525827,96687.0,96686.0,0.0018534]
[1736889781929,1.59048519,96687.0,96686.0,0.0008534]
[1736889782093,1.59748519,96687.0,96686.0,0.0028534]
[1736889782443,1.25714597,96687.0,96686.0,0.0018534]
[1736889782749,1.25714597,96687.0,96686.0,0.0028534]
[1736889782923,1.26114597,96687.0,96686.0,0.0028534]
[1736889783511,0.206887,96671.0,96670.0,0.0008534]
[1736889783941,0.21342176,96671.0,96670.0,0.0008534]
[1736889784143,0.2296438,96671.0,96670.0,0.0008534]
[1736889785123,0.2316438,96671.0,96670.0,0.0008534]
[1736889785337,0.2406438,96671.0,96659.0,0.0008533]
[1736889785542,0.206902,96664.0,96659.0,0.0008533]
[1736889785871,0.00653336,96663.0,96659.0,0.0008533]
[1736889786718,0.00653336,96663.0,96662.0,0.00098693]
[1736889786892,0.00653336,96663.0,96662.0,0.00198693]
[1736889787279,0.00653336,96663.0,96662.0,0.00098693]
[1736889788055,0.00653336,96663.0,96662.0,0.00198693]
[1736889788056,0.01453336,96663.0,96662.0,0.00198693]
[1736889788261,0.00953336,96663.0,96662.0,0.00098693]
[1736889788467,0.00953336,96663.0,96662.0,0.00198693]
[1736889788673,0.01453336,96663.0,96662.0,0.00198693]
[1736889789113,0.01753336,96663.0,96662.0,0.00198693]
[1736889790480,0.00953336,96663.0,96662.0,0.00098693]
[1736889790858,0.01753336,96663.0,96662.0,0.00198693]
[1736889791045,0.00953336,96663.0,96662.0,0.00098693]
[1736889791483,0.01753336,96663.0,96662.0,0.00198693]
[1736889792495,0.01753336,96663.0,96645.0,0.206942]
[1736889792694,0.01753336,96663.0,96651.0,0.00014871]
[1736889792881,0.01753336,96663.0,96662.0,0.0008538]
[1736889793479,0.01453336,96663.0,96662.0,0.0008538]
[1736889794767,0.01753336,96663.0,96662.0,0.0008538]
[1736889795276,0.01453336,96663.0,96662.0,0.0008538]
[1736889795629,0.01753336,96663.0,96662.0,0.0008538]
[1736889801626,0.01753336,96663.0,96662.0,0.02025599]
[1736889803531,0.011,96663.0,96662.0,0.02025599]
[1736889803727,0.217904,96663.0,96662.0,0.02025599]
[1736889803927,0.2735845,96663.0,96662.0,0.02025599]
[1736889804176,0.27194119,96663.0,96662.0,0.02025599]
[1736889804352,0.21626069,96663.0,96662.0,0.02025599]
[1736889804708,0.21726069,96663.0,96662.0,0.02025599]
[1736889804886,0.21826069,96663.0,96662.0,0.02025599]
[1736889805037,0.22426069,96663.0,96662.0,0.02125599]
[1736889805380,0.22505451,96663.0,96662.0,0.02125599]
[1736889805764,0.22705451,96663.0,96662.0,0.02125599]
[1736889807167,0.30433926,96663.0,96662.0,0.02125599]
[1736889807529,0.22705451,96663.0,96662.0,0.02125599]
[1736889807737,0.206912,96660.0,96650.0,0.20693]
[1736889807935,0.00637753,96659.0,96650.0,0.20693]
[1736889808646,0.206915,96658.0,96648.0,0.206934]
[1736889808978,0.00637753,96659.0,96648.0,0.206934]
[1736889809180,0.00637699,96658.0,96651.0,0.20707671]
[1736889809433,0.208912,96660.0,96651.0,0.20707671]
[1736889809589,0.00637717,96657.0,96651.0,0.00014871]
[1736889809791,0.206912,96659.0,96651.0,0.00014871]
[1736889809995,0.00637734,96658.0,96651.0,0.00014871]
[1736889810723,0.00737734,96658.0,96651.0,0.00014871]
[1736889810893,0.206917,96657.0,96651.0,0.00014871]
[1736889811305,0.00637663,96656.0,96651.0,0.00014871]
[1736889812288,0.001,96657.0,96651.0,0.00014871]
[1736889812500,0.00637758,96655.0,96651.0,0.00014871]
[1736889812700,0.002,96656.0,96651.0,0.00014871]
[1736889812915,0.00637723,96654.0,96651.0,0.00014871]
[1736889813142,0.0063774,96655.0,96651.0,0.00014871]
[1736889813476,0.206912,96660.0,96651.0,0.00014871]
[1736889813625,0.00637705,96654.0,96651.0,0.00014871]
[1736889813834,0.002,96655.0,96651.0,0.00014871]
[1736889814149,0.00637669,96653.0,96651.0,0.00014871]
[1736889816664,0.00737669,96653.0,96651.0,0.00100281]
[1736889817063,0.00837669,96653.0,96651.0,0.00100281]
[1736889817482,0.00737669,96653.0,96651.0,0.00100281]
[1736889818667,0.57332325,96652.0,96651.0,0.00100281]
[1736889818997,0.60826278,96652.0,96651.0,0.00100281]
[1736889819199,0.57332325,96652.0,96651.0,0.00100281]
[1736889819725,0.34328329,96652.0,96651.0,0.00100281]
[1736889820370,0.34328329,96652.0,96651.0,0.02041791]
[1736889821764,0.34428329,96652.0,96651.0,0.02041791]
[1736889825409,0.35223259,96652.0,96651.0,0.02041791]
[1736889827048,0.35223259,96652.0,96651.0,0.00100281]
[1736889827454,0.35223259,96652.0,96651.0,0.02041584]
[1736889828958,0.0089493,96652.0,96651.0,0.02041584]
[1736889830167,0.0089493,96652.0,96651.0,0.20514276]
[1736889832199,0.001,96652.0,96651.0,0.20514276]
[1736889832727,0.00637669,96653.0,96652.0,0.206927]
[1736889832950,0.00637669,96653.0,96652.0,0.31115392]
[1736889833454,0.00637669,96653.0,96652.0,0.33056695]
[1736889834567,0.01276199,96653.0,96652.0,0.33056695]
[1736889837782,0.00637669,96653.0,96652.0,0.33056695]
[1736889837987,0.00737669,96653.0,96652.0,0.33056695]
[1736889839150,0.00837669,96653.0,96652.0,0.33056695]
[1736889839745,0.00637669,96653.0,96652.0,0.33056695]
[1736889840080,0.00637669,96653.0,96652.0,0.33156695]
[1736889843112,0.00637669,96653.0,96652.0,0.50456695]
[1736889843284,0.00637669,96653.0,96652.0,0.66287803]
[1736889843565,0.00637669,96653.0,96652.0,3.13317803]
[1736889843802,6.9e-07,96653.0,96652.0,3.13317803]
[1736889844016,0.00179362,96662.0,96661.0,0.356908]
[1736889844216,0.00179362,96662.0,96661.0,0.61013492]
[1736889844421,0.00897946,96662.0,96661.0,0.71013492]
[1736889844628,0.00179362,96662.0,96661.0,0.71013492]
[1736889845347,6.2e-07,96662.0,96661.0,0.71013492]
[1736889845549,0.00100062,96662.0,96661.0,0.73854795]
[1736889845783,4.4e-07,96663.0,96662.0,0.4512]
[1736889845998,4.4e-07,96663.0,96662.0,0.58767958]
[1736889846413,4.4e-07,96663.0,96662.0,2.10709261]
[1736889847590,4.4e-07,96663.0,96662.0,2.07983995]
[1736889848221,0.00100044,96663.0,96662.0,2.95913995]
[1736889848748,0.00100044,96663.0,96662.0,3.05796581]
[1736889849295,0.00100044,96663.0,96662.0,2.95796581]
[1736889849500,0.00100044,96663.0,96662.0,2.96513995]
[1736889850052,0.00100044,96663.0,96662.0,2.97550122]
[1736889850308,0.00100044,96663.0,96662.0,3.03778904]
[1736889850505,0.00100044,96663.0,96662.0,2.97550122]
[1736889850849,0.00100044,96663.0,96662.0,1.27550122]
[1736889851521,0.00100044,96663.0,96662.0,1.17430122]
[1736889852076,0.00100044,96663.0,96662.0,1.15488819]
[1736889852281,4.4e-07,96663.0,96662.0,1.14088819]